[Event "Betsys MČR v online bleskovém šachu 2021"]
[Site "Chess.com"]
[Date "2021.04.17"]
[Round "6"]
[White "RousekJan"]
[Black "vasekpaulus"]
[Result "1-0"]
[WhiteElo "1806"]
[BlackElo "2054"]
[TimeControl "180+1"]
[EndTime "9:59:21 PDT"]
[Termination "Uživatel RousekJan zvítězil na čas"]

1. d4 {[%clk 0:03:00.9]} 1... Nf6 {[%clk 0:02:59.8]} 2. c4 {[%clk 0:03:00.9]}
2... c5 {[%clk 0:03:00]} 3. d5 {[%clk 0:02:59.9]} 3... b5 {[%clk 0:03:00.2]} 4.
cxb5 {[%clk 0:02:55.3]} 4... a6 {[%clk 0:03:00.3]} 5. e3 {[%clk 0:02:52.9]} 5...
g6 {[%clk 0:02:59.9]} 6. bxa6 {[%clk 0:02:50.7]} 6... Bxa6 {[%clk 0:02:59.7]} 7.
Bxa6 {[%clk 0:02:50.1]} 7... Qa5+ {[%clk 0:02:59.3]} 8. Nc3 {[%clk 0:02:47.5]}
8... Qxa6 {[%clk 0:03:00.2]} 9. Nge2 {[%clk 0:02:44.1]} 9... Bg7 {[%clk
0:02:59.8]} 10. O-O {[%clk 0:02:42.4]} 10... d6 {[%clk 0:02:59.7]} 11. b3 {[%clk
0:02:26]} 11... O-O {[%clk 0:02:55]} 12. Bb2 {[%clk 0:02:25.6]} 12... Nbd7
{[%clk 0:02:53.6]} 13. Qc2 {[%clk 0:02:22.1]} 13... Rfb8 {[%clk 0:02:46.6]} 14.
Rfb1 {[%clk 0:01:58.1]} 14... h5 {[%clk 0:02:36.1]} 15. Ng3 {[%clk 0:01:57.8]}
15... Ng4 {[%clk 0:02:28.9]} 16. Nce4 {[%clk 0:01:36.4]} 16... Nge5 {[%clk
0:02:14.9]} 17. f4 {[%clk 0:01:18.7]} 17... Ng4 {[%clk 0:02:12.9]} 18. Bxg7
{[%clk 0:01:17]} 18... Kxg7 {[%clk 0:02:12.4]} 19. h3 {[%clk 0:01:08.1]} 19...
Ngf6 {[%clk 0:02:04.4]} 20. Nxf6 {[%clk 0:01:07.9]} 20... Nxf6 {[%clk
0:02:04.3]} 21. e4 {[%clk 0:01:02.1]} 21... h4 {[%clk 0:02:02.4]} 22. Nf1 {[%clk
0:00:54.1]} 22... Nd7 {[%clk 0:01:34.4]} 23. Ne3 {[%clk 0:00:46.3]} 23... f6
{[%clk 0:01:30.7]} 24. Nc4 {[%clk 0:00:45]} 24... Nb6 {[%clk 0:01:23.4]} 25.
Nxb6 {[%clk 0:00:37.3]} 25... Rxb6 {[%clk 0:01:23.1]} 26. Qc3 {[%clk 0:00:23.4]}
26... Rb4 {[%clk 0:01:20.9]} 27. e5 {[%clk 0:00:22.5]} 27... Rxf4 {[%clk
0:01:16.7]} 28. exf6+ {[%clk 0:00:16]} 28... Rxf6 {[%clk 0:01:11.8]} 29. Rf1
{[%clk 0:00:15.4]} 29... Rf8 {[%clk 0:01:05.9]} 30. Rxf6 {[%clk 0:00:14.8]}
30... Rxf6 {[%clk 0:01:05.5]} 31. a3 {[%clk 0:00:10.9]} 31... Qe2 {[%clk
0:01:04.8]} 32. Rc1 {[%clk 0:00:03.5]} 32... Qf2+ {[%clk 0:01:02.3]} 33. Kh1
{[%clk 0:00:03.4]} 33... Kh7 {[%clk 0:01:00.4]} 34. Qc2 {[%clk 0:00:03]} 34...
Rf5 {[%clk 0:00:53.6]} 35. Qxf2 {[%clk 0:00:02.8]} 35... Rxf2 {[%clk 0:00:52.8]}
36. Rc4 {[%clk 0:00:01.8]} 36... Ra2 {[%clk 0:00:52.1]} 37. Rxh4+ {[%clk
0:00:01.7]} 37... Kg7 {[%clk 0:00:51.8]} 38. b4 {[%clk 0:00:02.6]} 38... Rxa3
{[%clk 0:00:50.4]} 39. bxc5 {[%clk 0:00:03.1]} 39... dxc5 {[%clk 0:00:50.9]} 40.
Rc4 {[%clk 0:00:03.7]} 40... Ra5 {[%clk 0:00:50.8]} 41. Rd4 {[%clk 0:00:04.2]}
41... Kf6 {[%clk 0:00:46.1]} 42. Re4 {[%clk 0:00:04.1]} 42... Ra6 {[%clk
0:00:44]} 43. Rc4 {[%clk 0:00:04.1]} 43... Ra5 {[%clk 0:00:21.8]} 44. Re4 {[%clk
0:00:04.6]} 44... c4 {[%clk 0:00:22]} 45. Re6+ {[%clk 0:00:04.6]} 45... Kf7
{[%clk 0:00:20.4]} 46. Rc6 {[%clk 0:00:05.1]} 46... Rxd5 {[%clk 0:00:17.6]} 47.
Rxc4 {[%clk 0:00:05.2]} 47... e5 {[%clk 0:00:17.7]} 48. Kh2 {[%clk 0:00:05.3]}
48... Kf6 {[%clk 0:00:17.8]} 49. Rc6+ {[%clk 0:00:05.5]} 49... Kf5 {[%clk
0:00:17.8]} 50. Rc3 {[%clk 0:00:05.7]} 50... e4 {[%clk 0:00:17]} 51. Kg3 {[%clk
0:00:06.1]} 51... Ke5 {[%clk 0:00:16.6]} 52. Kf2 {[%clk 0:00:06.2]} 52... Kd4
{[%clk 0:00:16.7]} 53. Rc2 {[%clk 0:00:06.2]} 53... Kd3 {[%clk 0:00:15.8]} 54.
Rc1 {[%clk 0:00:04.9]} 54... e3+ {[%clk 0:00:15.8]} 55. Ke1 {[%clk 0:00:04.3]}
55... Rg5 {[%clk 0:00:14.6]} 56. Rd1+ {[%clk 0:00:04.3]} 56... Ke4 {[%clk
0:00:14.4]} 57. Kf1 {[%clk 0:00:03.9]} 57... Ra5 {[%clk 0:00:11.6]} 58. Re1
{[%clk 0:00:04.1]} 58... Ra2 {[%clk 0:00:11.2]} 59. Kg1 {[%clk 0:00:03.8]} 59...
Kd3 {[%clk 0:00:10.3]} 60. Kf1 {[%clk 0:00:04.1]} 60... e2+ {[%clk 0:00:09.6]}
61. Kf2 {[%clk 0:00:04.4]} 61... Rd2 {[%clk 0:00:08.2]} 62. Kf3 {[%clk
0:00:03.9]} 62... g5 {[%clk 0:00:06.9]} 63. g3 {[%clk 0:00:03.3]} 63... Ra2
{[%clk 0:00:06.3]} 64. h4 {[%clk 0:00:03]} 64... gxh4 {[%clk 0:00:04.4]} 65.
gxh4 {[%clk 0:00:03.9]} 65... Ra6 {[%clk 0:00:03.3]} 66. Kf2 {[%clk 0:00:01.6]}
66... Rf6+ {[%clk 0:00:03.2]} 67. Kg3 {[%clk 0:00:01.8]} 67... Kd2 {[%clk
0:00:02.8]} 68. Rxe2+ {[%clk 0:00:01.1]} 68... Kxe2 {[%clk 0:00:03.1]} 69. Kg4
{[%clk 0:00:02]} 69... Ke3 {[%clk 0:00:03.3]} 70. Kg5 {[%clk 0:00:02.5]} 1-0

[Event "Betsys MČR v online bleskovém šachu 2021"]
[Site "Chess.com"]
[Date "2021.04.17"]
[Round "6"]
[White "vit_rosenbaum"]
[Black "penguinorodriguez"]
[Result "1-0"]
[WhiteElo "2248"]
[BlackElo "2538"]
[TimeControl "180+1"]
[EndTime "9:59:28 PDT"]
[Termination "Uživatel vit_rosenbaum zvítězil po vzdání soupeře"]

1. e4 {[%clk 0:03:00.9]} 1... e6 {[%clk 0:03:00.5]} 2. d4 {[%clk 0:03:00.6]}
2... d5 {[%clk 0:03:00.7]} 3. Nc3 {[%clk 0:02:59]} 3... Nf6 {[%clk 0:03:00.4]}
4. Bd3 {[%clk 0:02:55.2]} 4... c5 {[%clk 0:02:59.8]} 5. exd5 {[%clk 0:02:50.8]}
5... exd5 {[%clk 0:02:51.6]} 6. Nf3 {[%clk 0:02:46.4]} 6... Nc6 {[%clk
0:02:47.1]} 7. dxc5 {[%clk 0:02:31.2]} 7... Bxc5 {[%clk 0:02:46.6]} 8. Qe2+
{[%clk 0:02:30.4]} 8... Be7 {[%clk 0:02:41.5]} 9. O-O {[%clk 0:02:30]} 9... O-O
{[%clk 0:02:41.6]} 10. Bg5 {[%clk 0:02:21]} 10... Bg4 {[%clk 0:02:37.7]} 11.
Rad1 {[%clk 0:02:15.2]} 11... Nd4 {[%clk 0:02:31]} 12. Qe3 {[%clk 0:02:15.2]}
12... Nxf3+ {[%clk 0:02:31.2]} 13. gxf3 {[%clk 0:02:15.4]} 13... Be6 {[%clk
0:02:21.9]} 14. Rfe1 {[%clk 0:02:05]} 14... d4 {[%clk 0:02:15.1]} 15. Qe5 {[%clk
0:01:39.4]} 15... dxc3 {[%clk 0:01:56.8]} 16. Bxh7+ {[%clk 0:01:38.5]} 16...
Nxh7 {[%clk 0:01:57.5]} 17. Rxd8 {[%clk 0:01:37.5]} 17... Bxd8 {[%clk
0:01:58.4]} 18. Bxd8 {[%clk 0:01:30.8]} 18... Rfxd8 {[%clk 0:01:59.3]} 19. Qxc3
{[%clk 0:01:30.6]} 19... Nf6 {[%clk 0:01:56.9]} 20. Qb4 {[%clk 0:01:25]} 20...
b6 {[%clk 0:01:52.1]} 21. c4 {[%clk 0:01:18.7]} 21... Rd4 {[%clk 0:01:47.8]} 22.
b3 {[%clk 0:01:18]} 22... Rad8 {[%clk 0:01:46.4]} 23. Qe7 {[%clk 0:01:15]} 23...
R8d7 {[%clk 0:01:39.1]} 24. Qa3 {[%clk 0:01:02.6]} 24... Nh5 {[%clk 0:01:38]}
25. Qc1 {[%clk 0:00:59.3]} 25... Nf4 {[%clk 0:01:35.7]} 26. Qe3 {[%clk
0:00:43.9]} 26... Rd1 {[%clk 0:01:04.7]} 27. h4 {[%clk 0:00:38.7]} 27... R1d4
{[%clk 0:00:58.5]} 28. Kh2 {[%clk 0:00:37.6]} 28... Ng6 {[%clk 0:00:26.7]} 29.
Kg3 {[%clk 0:00:37.2]} 29... Rxh4 {[%clk 0:00:24.7]} 30. Qg5 {[%clk 0:00:27.6]}
30... Rh3+ {[%clk 0:00:21.2]} 31. Kg2 {[%clk 0:00:27.7]} 31... Nh4+ {[%clk
0:00:20.7]} 32. Kf1 {[%clk 0:00:22.1]} 32... Nxf3 {[%clk 0:00:21]} 33. Qg2
{[%clk 0:00:20.2]} 33... Nh4 {[%clk 0:00:11.3]} 34. Qa8+ {[%clk 0:00:18.6]}
34... Kh7 {[%clk 0:00:11.9]} 35. Qe4+ {[%clk 0:00:18.4]} 35... Bf5 {[%clk
0:00:12.3]} 36. Qc6 {[%clk 0:00:14.4]} 36... Rdd3 {[%clk 0:00:07.3]} 37. Re5
{[%clk 0:00:14.1]} 37... Rh2 {[%clk 0:00:05.2]} 38. Rxf5 {[%clk 0:00:13.3]}
38... Rd1+ {[%clk 0:00:05.2]} 39. Ke2 {[%clk 0:00:12.9]} 39... Nxf5 {[%clk
0:00:03.5]} 40. Kxd1 {[%clk 0:00:13.1]} 40... Rxf2 {[%clk 0:00:03.9]} 41. Qe4
{[%clk 0:00:13]} 41... g6 {[%clk 0:00:03.1]} 42. Qh1+ {[%clk 0:00:12.5]} 42...
Kg7 {[%clk 0:00:03.1]} 43. Qb7 {[%clk 0:00:12.4]} 43... Rxa2 {[%clk 0:00:03]}
44. Qd5 {[%clk 0:00:11.5]} 44... Ra5 {[%clk 0:00:03.2]} 45. Qd8 {[%clk
0:00:09.7]} 45... Re5 {[%clk 0:00:03.5]} 46. Kc2 {[%clk 0:00:09.4]} 46... Re6
{[%clk 0:00:04.1]} 47. Kc3 {[%clk 0:00:09.7]} 47... Rd6 {[%clk 0:00:04.6]} 48.
Qc7 {[%clk 0:00:09.6]} 48... Re6 {[%clk 0:00:04]} 49. Qxa7 {[%clk 0:00:09.7]}
49... g5 {[%clk 0:00:04.6]} 50. Qb7 {[%clk 0:00:09.5]} 50... g4 {[%clk 0:00:05]}
51. Qd5 {[%clk 0:00:09.4]} 51... Nh6 {[%clk 0:00:02.4]} 52. Qg5+ {[%clk
0:00:08.9]} 52... Rg6 {[%clk 0:00:02.8]} 53. Qd2 {[%clk 0:00:07.9]} 53... g3
{[%clk 0:00:03.2]} 54. Qg2 {[%clk 0:00:08.5]} 54... Nf5 {[%clk 0:00:03.3]} 55.
b4 {[%clk 0:00:08.3]} 55... Nh4 {[%clk 0:00:03.9]} 56. Qe4 {[%clk 0:00:07.2]}
56... g2 {[%clk 0:00:02.9]} 57. Qd4+ {[%clk 0:00:07.1]} 57... f6 {[%clk
0:00:01.3]} 58. Qd7+ {[%clk 0:00:06.5]} 58... Kh6 {[%clk 0:00:01.7]} 59. Qd2+
{[%clk 0:00:06]} 59... Rg5 {[%clk 0:00:01.5]} 60. Qd4 {[%clk 0:00:06]} 60...
g1=Q {[%clk 0:00:02.4]} 61. Qxh4+ {[%clk 0:00:06.2]} 61... Kg6 {[%clk
0:00:03.3]} 62. Qe4+ {[%clk 0:00:06.5]} 62... f5 {[%clk 0:00:03.4]} 63. Qe6+
{[%clk 0:00:06.3]} 63... Kh5 {[%clk 0:00:03.9]} 64. Qe2+ {[%clk 0:00:05.8]}
64... Qg4 {[%clk 0:00:04]} 65. Qh2+ {[%clk 0:00:05.3]} 65... Qh4 {[%clk
0:00:04.4]} 66. Qe2+ {[%clk 0:00:05.4]} 66... Kg6 {[%clk 0:00:04.8]} 67. Qe6+
{[%clk 0:00:05.2]} 67... Kh5 {[%clk 0:00:05.7]} 68. Qe2+ {[%clk 0:00:05.3]}
68... Rg4 {[%clk 0:00:06.2]} 69. Qe8+ {[%clk 0:00:04.5]} 69... Kg5 {[%clk
0:00:06.8]} 70. Qe3+ {[%clk 0:00:04.6]} 70... Rf4 {[%clk 0:00:06.6]} 71. Qe7+
{[%clk 0:00:04.7]} 71... Kg4 {[%clk 0:00:07.3]} 72. Qe2+ {[%clk 0:00:04.8]}
72... Rf3+ {[%clk 0:00:08]} 73. Kd4 {[%clk 0:00:04.3]} 73... Qf6+ {[%clk
0:00:08.3]} 74. Kd5 {[%clk 0:00:04.3]} 74... Qf7+ {[%clk 0:00:08.7]} 75. Kc6
{[%clk 0:00:04.5]} 75... Qxc4+ {[%clk 0:00:08.9]} 76. Qxc4+ {[%clk 0:00:03.8]}
76... Rf4 {[%clk 0:00:09.6]} 77. Qg8+ {[%clk 0:00:03.9]} 77... Kf3 {[%clk
0:00:09.4]} 78. b5 {[%clk 0:00:04.3]} 78... Rg4 {[%clk 0:00:09.1]} 79. Qd5+
{[%clk 0:00:04.2]} 79... Ke3 {[%clk 0:00:09.4]} 80. Qxf5 {[%clk 0:00:04.2]}
80... Re4 {[%clk 0:00:09.9]} 81. Qd5 {[%clk 0:00:04.2]} 81... Rd4 {[%clk
0:00:09.5]} 82. Qxd4+ {[%clk 0:00:04.3]} 82... Kxd4 {[%clk 0:00:10.4]} 83. Kxb6
{[%clk 0:00:04.9]} 1-0

[Event "Betsys MČR v online bleskovém šachu 2021"]
[Site "Chess.com"]
[Date "2021.04.17"]
[Round "6"]
[White "ghostdog777"]
[Black "VitaRasik"]
[Result "0-1"]
[WhiteElo "2244"]
[BlackElo "2611"]
[TimeControl "180+1"]
[EndTime "9:59:38 PDT"]
[Termination "Uživatel VitaRasik zvítězil matem"]

1. Nf3 {[%clk 0:03:00.9]} 1... g6 {[%clk 0:02:59.1]} 2. d4 {[%clk 0:02:58.5]}
2... Bg7 {[%clk 0:02:55]} 3. g3 {[%clk 0:02:59.4]} 3... Nf6 {[%clk 0:02:54.2]}
4. Bg2 {[%clk 0:03:00.3]} 4... O-O {[%clk 0:02:53.5]} 5. O-O {[%clk 0:03:01.2]}
5... d6 {[%clk 0:02:50.3]} 6. c4 {[%clk 0:03:02.1]} 6... Nc6 {[%clk 0:02:49.1]}
7. Nc3 {[%clk 0:03:02.4]} 7... e5 {[%clk 0:02:49.3]} 8. dxe5 {[%clk 0:02:40.8]}
8... Nxe5 {[%clk 0:02:47.8]} 9. Nxe5 {[%clk 0:02:40.4]} 9... dxe5 {[%clk
0:02:48]} 10. Qxd8 {[%clk 0:02:40.2]} 10... Rxd8 {[%clk 0:02:47.7]} 11. Bg5
{[%clk 0:02:37.4]} 11... Rd4 {[%clk 0:02:47.4]} 12. b3 {[%clk 0:02:29]} 12... c6
{[%clk 0:02:47.4]} 13. Rfd1 {[%clk 0:02:22.9]} 13... Bg4 {[%clk 0:02:47.1]} 14.
h3 {[%clk 0:02:19.4]} 14... Be6 {[%clk 0:02:46.5]} 15. Be3 {[%clk 0:02:17.6]}
15... Rxd1+ {[%clk 0:02:39.9]} 16. Rxd1 {[%clk 0:02:16]} 16... Bf8 {[%clk
0:02:16.5]} 17. Bg5 {[%clk 0:01:11]} 17... Bg7 {[%clk 0:01:49.4]} 18. Be3 {[%clk
0:01:07.5]} 18... h6 {[%clk 0:01:43.2]} 19. Na4 {[%clk 0:01:05.3]} 19... Nd7
{[%clk 0:01:42.6]} 20. Nc5 {[%clk 0:01:03.5]} 20... Nxc5 {[%clk 0:01:42.2]} 21.
Bxc5 {[%clk 0:01:03.3]} 21... Bf8 {[%clk 0:01:32.2]} 22. Be3 {[%clk 0:00:56.7]}
22... f5 {[%clk 0:01:26.6]} 23. h4 {[%clk 0:00:48.8]} 23... Kf7 {[%clk 0:01:25]}
24. Bf3 {[%clk 0:00:42.9]} 24... a5 {[%clk 0:01:09.3]} 25. a4 {[%clk 0:00:40]}
25... e4 {[%clk 0:01:03]} 26. Bg2 {[%clk 0:00:39.5]} 26... h5 {[%clk 0:01:02.1]}
27. Kf1 {[%clk 0:00:38.5]} 27... Be7 {[%clk 0:01:00.3]} 28. Bb6 {[%clk
0:00:35.9]} 28... Ra6 {[%clk 0:00:53]} 29. Bc7 {[%clk 0:00:26.6]} 29... Ra8
{[%clk 0:00:47.7]} 30. Bb6 {[%clk 0:00:25.9]} 30... Bb4 {[%clk 0:00:45.7]} 31.
e3 {[%clk 0:00:20.3]} 31... Be7 {[%clk 0:00:40.5]} 32. Ke2 {[%clk 0:00:19.6]}
32... Ke8 {[%clk 0:00:39.8]} 33. Bf1 {[%clk 0:00:16.4]} 33... Bd8 {[%clk
0:00:36]} 34. Bxd8 {[%clk 0:00:15.9]} 34... Rxd8 {[%clk 0:00:35.9]} 35. Rxd8+
{[%clk 0:00:16.8]} 35... Kxd8 {[%clk 0:00:36]} 36. Kd2 {[%clk 0:00:17.4]} 36...
Kc7 {[%clk 0:00:34]} 37. Kc3 {[%clk 0:00:16.8]} 37... Kd6 {[%clk 0:00:34.1]} 38.
Kd4 {[%clk 0:00:16.6]} 38... b6 {[%clk 0:00:28.6]} 39. Kc3 {[%clk 0:00:15.8]}
39... Kc5 {[%clk 0:00:27.8]} 40. Be2 {[%clk 0:00:15.9]} 40... Bf7 {[%clk
0:00:26]} 41. Bf1 {[%clk 0:00:16]} 41... Bg8 {[%clk 0:00:25.7]} 42. Be2 {[%clk
0:00:16.1]} 42... Be6 {[%clk 0:00:25.1]} 43. Bf1 {[%clk 0:00:16.2]} 43... Bd7
{[%clk 0:00:25.2]} 44. Be2 {[%clk 0:00:16.4]} 44... Be8 {[%clk 0:00:21.5]} 45.
Bf1 {[%clk 0:00:16]} 45... Bf7 {[%clk 0:00:20.8]} 46. Be2 {[%clk 0:00:16.2]}
46... Kd6 {[%clk 0:00:20.4]} 47. Kd4 {[%clk 0:00:14.8]} 47... c5+ {[%clk
0:00:20.1]} 48. Kc3 {[%clk 0:00:14.7]} 48... Ke5 {[%clk 0:00:20.4]} 49. Kd2
{[%clk 0:00:14.6]} 49... Kf6 {[%clk 0:00:20.6]} 50. Ke1 {[%clk 0:00:14.4]} 50...
g5 {[%clk 0:00:20.9]} 51. Kf1 {[%clk 0:00:12]} 51... gxh4 {[%clk 0:00:14.3]} 52.
gxh4 {[%clk 0:00:11.5]} 52... f4 {[%clk 0:00:15]} 53. Kg1 {[%clk 0:00:10.6]}
53... Kf5 {[%clk 0:00:14.5]} 54. exf4 {[%clk 0:00:07.6]} 54... Kxf4 {[%clk
0:00:14.1]} 55. Kg2 {[%clk 0:00:07.9]} 55... Bg6 {[%clk 0:00:13.8]} 56. Bd1
{[%clk 0:00:07.4]} 56... e3 {[%clk 0:00:11.7]} 57. Kf1 {[%clk 0:00:04.5]} 57...
Bd3+ {[%clk 0:00:10.4]} 58. Be2 {[%clk 0:00:03.8]} 58... Bxe2+ {[%clk
0:00:08.9]} 59. Kxe2 {[%clk 0:00:04.7]} 59... exf2 {[%clk 0:00:09.1]} 60. Kxf2
{[%clk 0:00:05.5]} 60... Kg4 {[%clk 0:00:09.4]} 61. Ke3 {[%clk 0:00:06.2]} 61...
Kxh4 {[%clk 0:00:09.6]} 62. Kf4 {[%clk 0:00:06.8]} 62... Kh3 {[%clk 0:00:09.4]}
63. Kf3 {[%clk 0:00:07]} 63... h4 {[%clk 0:00:09.2]} 64. Kf2 {[%clk 0:00:06.4]}
64... Kg4 {[%clk 0:00:09.4]} 65. Kg2 {[%clk 0:00:06.4]} 65... Kf4 {[%clk
0:00:09.7]} 66. Kh3 {[%clk 0:00:06.7]} 66... Ke4 {[%clk 0:00:10.6]} 67. Kxh4
{[%clk 0:00:07.4]} 67... Kd4 {[%clk 0:00:11.5]} 68. Kg4 {[%clk 0:00:08.3]} 68...
Kc3 {[%clk 0:00:12.2]} 69. Kf4 {[%clk 0:00:09.2]} 69... Kxb3 {[%clk 0:00:12.8]}
70. Ke4 {[%clk 0:00:10.1]} 70... Kxc4 {[%clk 0:00:13.3]} 71. Ke3 {[%clk
0:00:09.5]} 71... Kb4 {[%clk 0:00:13.9]} 72. Kd2 {[%clk 0:00:10.4]} 72... Kxa4
{[%clk 0:00:14.5]} 73. Kc2 {[%clk 0:00:11.3]} 73... Kb4 {[%clk 0:00:15.2]} 74.
Kb2 {[%clk 0:00:12.2]} 74... c4 {[%clk 0:00:15.7]} 75. Kc2 {[%clk 0:00:11.9]}
75... c3 {[%clk 0:00:16.6]} 76. Kb1 {[%clk 0:00:11.9]} 76... a4 {[%clk
0:00:17.5]} 77. Kc2 {[%clk 0:00:12.2]} 77... Kc4 {[%clk 0:00:17]} 78. Kb1 {[%clk
0:00:12.8]} 78... Kb3 {[%clk 0:00:17.1]} 79. Ka1 {[%clk 0:00:12.5]} 79... Kc4
{[%clk 0:00:15.4]} 80. Kb1 {[%clk 0:00:12.6]} 80... Kd3 {[%clk 0:00:15.6]} 81.
Kc1 {[%clk 0:00:12.5]} 81... c2 {[%clk 0:00:15.2]} 82. Kb2 {[%clk 0:00:12.5]}
82... Kd2 {[%clk 0:00:15.4]} 83. Ka2 {[%clk 0:00:12.7]} 83... b5 {[%clk
0:00:14.8]} 84. Kb2 {[%clk 0:00:10.9]} 84... c1=Q+ {[%clk 0:00:15.2]} 85. Ka2
{[%clk 0:00:11.5]} 85... Qc2+ {[%clk 0:00:14.2]} 86. Ka1 {[%clk 0:00:11.5]}
86... Qd1+ {[%clk 0:00:13.9]} 87. Ka2 {[%clk 0:00:11.6]} 87... b4 {[%clk
0:00:13.3]} 88. Kb2 {[%clk 0:00:11.1]} 88... a3+ {[%clk 0:00:13.4]} 89. Ka2
{[%clk 0:00:11.1]} 89... Qc2+ {[%clk 0:00:13.4]} 90. Ka1 {[%clk 0:00:11.3]}
90... Qb2# {[%clk 0:00:13.9]} 0-1

[Event "Betsys MČR v online bleskovém šachu 2021"]
[Site "Chess.com"]
[Date "2021.04.17"]
[Round "7"]
[White "JaraLinhart"]
[Black "Bancroft"]
[Result "1-0"]
[WhiteElo "1693"]
[BlackElo "1915"]
[TimeControl "180+1"]
[EndTime "10:06:28 PDT"]
[Termination "Uživatel JaraLinhart zvítězil po vzdání soupeře"]

1. e4 {[%clk 0:02:59.6]} 1... c5 {[%clk 0:02:57.1]} 2. Nf3 {[%clk 0:02:59.2]}
2... d6 {[%clk 0:02:55.7]} 3. c3 {[%clk 0:02:59.3]} 3... Nf6 {[%clk 0:02:51.3]}
4. Bd3 {[%clk 0:02:55.5]} 4... Nc6 {[%clk 0:02:50.7]} 5. Bc2 {[%clk 0:02:54.7]}
5... g6 {[%clk 0:02:50.4]} 6. d4 {[%clk 0:02:54.6]} 6... cxd4 {[%clk 0:02:47.5]}
7. cxd4 {[%clk 0:02:53.3]} 7... d5 {[%clk 0:02:47.7]} 8. e5 {[%clk 0:02:52.4]}
8... Ne4 {[%clk 0:02:47.7]} 9. Nc3 {[%clk 0:02:52.3]} 9... Bg4 {[%clk
0:02:45.1]} 10. Nxe4 {[%clk 0:02:45.3]} 10... dxe4 {[%clk 0:02:44.8]} 11. Bxe4
{[%clk 0:02:44.3]} 11... Bxf3 {[%clk 0:02:39.9]} 12. Bxf3 {[%clk 0:02:18.7]}
12... Qxd4 {[%clk 0:02:37.6]} 13. Bxc6+ {[%clk 0:02:17.3]} 1-0

[Event "Betsys MČR v online bleskovém šachu 2021"]
[Site "Chess.com"]
[Date "2021.04.17"]
[Round "7"]
[White "pohoda1966"]
[Black "PavelNo"]
[Result "0-1"]
[WhiteElo "1729"]
[BlackElo "1974"]
[TimeControl "180+1"]
[EndTime "10:06:36 PDT"]
[Termination "Uživatel PavelNo zvítězil po vzdání soupeře"]

1. e4 {[%clk 0:03:00.9]} 1... c5 {[%clk 0:02:59.5]} 2. Nc3 {[%clk 0:02:57.1]}
2... e6 {[%clk 0:02:59.5]} 3. g3 {[%clk 0:02:56.1]} 3... Nc6 {[%clk 0:02:58.2]}
4. Bg2 {[%clk 0:02:56.1]} 4... g6 {[%clk 0:02:57.6]} 5. d3 {[%clk 0:02:56.2]}
5... Bg7 {[%clk 0:02:57.5]} 6. Nge2 {[%clk 0:02:56.3]} 6... Nge7 {[%clk
0:02:57.4]} 7. Be3 {[%clk 0:02:56]} 7... Nd4 {[%clk 0:02:54.6]} 8. Qd2 {[%clk
0:02:50.9]} 8... Rb8 {[%clk 0:02:46.3]} 9. a4 {[%clk 0:02:49.3]} 9... d6 {[%clk
0:02:41.2]} 10. O-O {[%clk 0:02:46.5]} 10... O-O {[%clk 0:02:40]} 11. f4 {[%clk
0:02:43.9]} 11... Bd7 {[%clk 0:02:32.8]} 12. Nd1 {[%clk 0:02:41.9]} 12... Qc7
{[%clk 0:02:18.7]} 13. c3 {[%clk 0:02:40.9]} 13... Nb3 {[%clk 0:02:17.1]} 0-1

[Event "Betsys MČR v online bleskovém šachu 2021"]
[Site "Chess.com"]
[Date "2021.04.17"]
[Round "7"]
[White "Johanna94"]
[Black "Paulz64"]
[Result "1/2-1/2"]
[WhiteElo "2069"]
[BlackElo "2472"]
[TimeControl "180+1"]
[EndTime "10:07:09 PDT"]
[Termination "Remíza dohodou"]

1. d4 {[%clk 0:03:00.9]} 1... Nf6 {[%clk 0:02:51.1]} 2. c4 {[%clk 0:03:00.5]}
2... e6 {[%clk 0:02:51.5]} 3. Nf3 {[%clk 0:03:00.3]} 3... b6 {[%clk 0:02:50.3]}
4. g3 {[%clk 0:02:59.6]} 4... Ba6 {[%clk 0:02:47.6]} 5. b3 {[%clk 0:02:55.4]}
5... d5 {[%clk 0:02:47.5]} 6. Bg2 {[%clk 0:02:51.8]} 6... Bb4+ {[%clk
0:02:44.3]} 7. Bd2 {[%clk 0:02:48.8]} 7... Be7 {[%clk 0:02:44]} 8. O-O {[%clk
0:02:44.2]} 8... O-O {[%clk 0:02:43.8]} 9. Bc3 {[%clk 0:02:44]} 9... Nbd7 {[%clk
0:02:38.5]} 10. Nbd2 {[%clk 0:02:41.3]} 10... c5 {[%clk 0:02:38.6]} 11. e3
{[%clk 0:02:30.8]} 11... Rc8 {[%clk 0:02:34.1]} 12. Ne5 {[%clk 0:02:22.2]} 12...
b5 {[%clk 0:02:17.2]} 1/2-1/2

[Event "Betsys MČR v online bleskovém šachu 2021"]
[Site "Chess.com"]
[Date "2021.04.17"]
[Round "7"]
[White "121pepa"]
[Black "kol340"]
[Result "0-1"]
[WhiteElo "1428"]
[BlackElo "1831"]
[TimeControl "180+1"]
[EndTime "10:07:16 PDT"]
[Termination "Uživatel kol340 zvítězil matem"]

1. d4 {[%clk 0:02:40.8]} 1... c6 {[%clk 0:03:00.9]} 2. c4 {[%clk 0:02:39.5]}
2... d5 {[%clk 0:03:01.8]} 3. Nc3 {[%clk 0:02:36.9]} 3... Nf6 {[%clk 0:02:58.3]}
4. Nf3 {[%clk 0:02:31.3]} 4... Bf5 {[%clk 0:02:54.1]} 5. e3 {[%clk 0:02:30.3]}
5... e6 {[%clk 0:02:54.3]} 6. Bd3 {[%clk 0:02:27.2]} 6... Bg6 {[%clk 0:02:54.6]}
7. O-O {[%clk 0:02:23.3]} 7... Bd6 {[%clk 0:02:53.5]} 8. a3 {[%clk 0:02:20.4]}
8... Nbd7 {[%clk 0:02:53]} 9. b4 {[%clk 0:02:19.3]} 9... Rc8 {[%clk 0:02:52.9]}
10. Bxg6 {[%clk 0:02:18.1]} 10... hxg6 {[%clk 0:02:52.5]} 11. c5 {[%clk
0:02:13]} 11... Bb8 {[%clk 0:02:51.8]} 12. Rb1 {[%clk 0:02:11.7]} 12... Ne4
{[%clk 0:02:50.5]} 13. Nxe4 {[%clk 0:02:09.6]} 13... dxe4 {[%clk 0:02:51]} 14.
Nd2 {[%clk 0:02:06.3]} 14... Bxh2+ {[%clk 0:02:50.3]} 15. Kh1 {[%clk 0:02:05]}
15... Qh4 {[%clk 0:02:47.1]} 16. Nf3 {[%clk 0:01:39.3]} 16... exf3 {[%clk
0:02:46.7]} 17. Qxf3 {[%clk 0:01:38.4]} 17... Bg3+ {[%clk 0:02:40.2]} 18. Kg1
{[%clk 0:01:37.2]} 18... Qh2# {[%clk 0:02:38.8]} 0-1